bitfinex/quotes_ETHUSD_20241004
["timestamp","ask_amount","ask_price","bid_price","bid_amount"]
[1728012400648,0.7702,2369.8,2369.5,0.43027148]
[1728012400833,0.7702,2369.8,2369.6,0.43027148]
[1728012401014,0.7702,2369.8,2369.4,10.39192254]
[1728012401214,0.7702,2369.8,2369.5,0.43026607]
[1728012401417,0.7702,2369.8,2369.6,0.43026607]
[1728012401757,0.7702,2369.8,2369.4,7.00310254]
[1728012402263,0.7702,2369.8,2369.5,0.43026806]
[1728012402466,0.7702,2369.8,2369.5,0.86053584]
[1728012402933,0.7702,2369.8,2369.6,0.43026778]
[1728012403137,0.7702,2369.8,2369.5,0.43026806]
[1728012403325,0.7702,2369.8,2369.6,0.43026721]
[1728012403663,0.7702,2369.8,2369.5,0.43026806]
[1728012403836,0.7702,2369.8,2369.6,0.43027826]
[1728012404025,0.7702,2369.8,2369.5,0.43026806]
[1728012404229,0.7702,2369.8,2369.6,0.43027826]
[1728012404456,0.7702,2369.8,2369.5,1.31588209]
[1728012404624,0.7702,2369.8,2369.6,0.43027802]
[1728012404824,0.7702,2369.8,2369.5,0.88561403]
[1728012405275,0.7702,2369.8,2369.6,0.43027803]
[1728012405436,0.7702,2369.8,2369.6,0.88561403]
[1728012407842,4.98998,2369.8,2369.6,0.88561403]
[1728012411134,4.98998,2369.8,2369.5,0.88561403]
[1728012417336,4.98998,2369.8,2369.4,0.88561403]
[1728012418541,4.98998,2369.8,2369.5,0.88561403]
[1728012419381,4.98998,2369.8,2369.4,0.88561403]
[1728012419679,4.98998,2369.8,2369.4,2.12827635]
[1728012419898,0.7702,2369.8,2369.5,1.3156606]
[1728012420195,0.7702,2369.8,2369.5,0.88561403]
[1728012422192,0.7702,2369.8,2369.6,0.88561403]
[1728012422898,0.7702,2369.8,2369.5,0.88561403]
[1728012425397,4.99006,2369.8,2369.5,0.88561403]
[1728012425703,0.7584,2369.7,2369.5,0.88561403]
[1728012425903,0.7584,2369.7,2369.4,2.12827635]
[1728012426775,7.97869,2369.5,2369.4,0.88561403]
[1728012426978,4.97887,2369.4,2369.3,0.88561403]
[1728012427313,4.97887,2369.4,2369.0,0.89181403]
[1728012427314,4.22073,2369.3,2369.0,0.89181403]
[1728012427672,4.97887,2369.4,2369.0,0.89181403]
[1728012427889,0.7584,2369.4,2369.0,0.89181403]
[1728012428196,0.7584,2369.4,2369.0,6.43713135]
[1728012428700,0.7584,2369.4,2369.1,0.88561403]
[1728012429290,0.7584,2369.4,2369.0,6.52154609]
[1728012431078,0.7584,2369.4,2369.0,1.41475206]
[1728012431302,0.7584,2369.4,2369.0,2.30036609]
[1728012432310,0.7584,2369.4,2369.0,1.41475206]
[1728012433689,0.7584,2369.6,2369.1,1.54378712]
[1728012433891,3.0,2369.7,2369.2,5.10644403]
[1728012434082,3.0,2369.7,2369.3,0.8072]
[1728012434276,3.0,2369.7,2369.4,0.59980468]
[1728012434704,7.22005,2369.7,2369.3,0.88561403]
[1728012434906,7.22005,2369.7,2369.2,0.88561403]
[1728012435318,3.0,2369.7,2369.2,0.88561403]
[1728012435802,7.21999,2369.7,2369.2,0.88561403]
[1728012436004,12.28261,2369.8,2369.2,0.88561403]
[1728012436233,0.7584,2369.8,2369.4,0.8072]
[1728012436390,7.2195,2370.0,2369.4,1.69281403]
[1728012436391,9.19747,2370.0,2369.4,1.69281403]
[1728012436594,4.21961,2369.9,2369.4,1.69281403]
[1728012436776,4.21978,2369.8,2369.4,1.69281403]
[1728012436976,4.21978,2369.8,2369.4,2.25100442]
[1728012437280,4.21978,2369.8,2369.4,1.36539039]
[1728012437476,4.21978,2369.8,2369.4,2.25100442]
[1728012437720,4.97789,2370.0,2369.4,2.25100442]
[1728012438018,4.2197,2369.9,2369.4,2.25100442]
[1728012438245,4.2197,2369.9,2369.5,0.85894762]
[1728012440419,4.97789,2370.0,2369.5,0.85894762]
[1728012441725,9.19744,2370.0,2369.5,0.85894762]
[1728012441925,4.97789,2370.0,2369.5,0.85894762]
[1728012442923,7.97754,2370.2,2369.6,0.8072]
[1728012443136,0.04267366,2370.0,2369.8,5.02686]
[1728012443445,0.7584,2370.6,2370.1,4.21909]
[1728012443580,0.7584,2370.6,2370.2,0.58700151]
[1728012443785,0.7584,2370.6,2370.0,1.69281403]
[1728012443786,0.03995172,2370.5,2370.0,1.69281403]
[1728012443980,4.2188,2370.4,2370.0,1.69281403]
[1728012444235,4.2188,2370.4,2369.9,1.69281403]
[1728012444538,4.21908,2370.2,2369.8,0.88561403]
[1728012444850,4.21908,2370.2,2369.8,2.07758156]
[1728012445123,4.97727,2370.3,2369.8,2.07758156]
[1728012445331,4.97727,2370.3,2369.8,1.19196753]
[1728012448338,4.21909,2370.2,2369.7,6.77211025]
[1728012448547,4.21909,2370.2,2369.7,5.02703]
[1728012448721,4.21923,2370.1,2369.7,0.8072]
[1728012449031,0.7584,2370.0,2369.6,0.88561403]
[1728012449187,0.7584,2370.0,2369.6,4.22007]
[1728012449388,0.7584,2370.0,2369.6,5.36621951]
[1728012449588,4.97749,2370.2,2369.6,6.25183354]
[1728012450227,4.97749,2370.2,2369.6,5.36621951]
[1728012450403,0.7584,2370.2,2369.8,0.8072]
[1728012451713,4.97749,2370.2,2369.8,0.8072]
[1728012453350,4.97749,2370.2,2369.6,1.95334951]
[1728012453561,4.97749,2370.2,2369.6,6.17342951]
[1728012453724,4.97749,2370.2,2369.4,0.42855444]
[1728012453725,0.7584,2369.8,2369.4,0.42855444]
[1728012453928,4.22024,2369.6,2369.0,4.22727]
[1728012454252,4.22023,2369.6,2369.0,4.22727]
[1728012454456,4.22023,2369.6,2369.1,0.92557]
[1728012455372,4.97827,2369.8,2369.3,4.22061]
[1728012455569,0.7584,2369.8,2369.3,4.22061]
[1728012459041,0.8219,2369.4,2369.1,0.88506009]
[1728012459277,0.8219,2369.4,2369.0,0.0062]
[1728012459278,5.04238,2369.4,2369.0,0.0062]
[1728012459443,9.26298,2369.4,2369.0,0.0062]
[1728012459645,5.04238,2369.4,2369.0,0.0062]
[1728012460456,4.22085,2369.2,2369.0,0.0062]
[1728012461282,4.22066,2369.3,2369.0,0.0062]
[1728012462338,4.22086,2369.2,2369.0,0.0062]
[1728012462545,0.8219,2369.1,2369.0,0.0062]
[1728012465762,5.04291,2369.1,2369.0,0.0062]
[1728012465962,5.969287,2369.1,2369.0,0.0062]
[1728012466246,1.748277,2369.1,2369.0,0.0062]
[1728012466952,5.969287,2369.1,2369.0,0.0062]
[1728012467378,5.969287,2369.1,2369.0,0.0175226]
[1728012468200,1.748277,2369.1,2369.0,0.0175226]
[1728012468491,5.969287,2369.1,2369.0,0.0175226]
[1728012473612,8.969287,2369.1,2369.0,0.0175226]
[1728012487060,10.26241491,2369.1,2369.0,0.0175226]
[1728012491191,8.969287,2369.1,2369.0,0.0175226]
[1728012494202,9.71241491,2369.1,2369.0,0.0175226]
[1728012496491,10.26241491,2369.1,2369.0,0.0175226]
[1728012496659,27.43900691,2369.1,2369.0,0.0175226]
[1728012496860,27.8793425,2369.1,2369.0,0.0175226]
[1728012497107,27.1857955,2369.1,2369.0,0.0175226]
[1728012497263,20.1632465,2369.1,2369.0,0.0175226]
[1728012497462,10.7027505,2369.1,2369.0,0.0175226]
[1728012498901,13.3459505,2369.1,2369.0,0.0175226]
[1728012499107,10.7027505,2369.1,2369.0,0.0175226]
[1728012501174,12.7015605,2369.1,2369.0,0.0175226]
[1728012501373,12.69724252,2369.1,2369.0,0.0175226]
[1728012501910,13.76724252,2369.1,2369.0,0.0175226]
[1728012502409,13.94563252,2369.1,2369.0,0.0175226]
[1728012502764,10.69643252,2369.1,2369.0,0.0175226]
[1728012502965,16.30596852,2369.1,2369.0,0.0175226]
[1728012504371,10.69643252,2369.1,2369.0,0.0175226]
[1728012505413,8.47692761,2369.1,2369.0,0.0175226]
[1728012509518,9.22005552,2369.1,2369.0,0.0175226]
[1728012510496,9.77005552,2369.1,2369.0,0.0175226]
[1728012510887,9.76861297,2369.1,2369.0,0.0175226]
[1728012521770,13.89861297,2369.1,2369.0,0.0175226]
[1728012522084,15.71056027,2369.1,2369.0,0.0175226]
[1728012523977,15.24809427,2369.1,2369.0,0.0175226]
[1728012524733,11.58056027,2369.1,2369.0,0.0175226]
[1728012524935,15.52170427,2369.1,2369.0,0.0175226]
[1728012525833,10.28743236,2369.1,2369.0,0.0175226]
[1728012526079,10.83743236,2369.1,2369.0,0.0175226]
[1728012527079,17.43765436,2369.1,2369.0,0.0175226]
[1728012527279,12.89344536,2369.1,2369.0,0.0175226]
[1728012527493,10.83743236,2369.1,2369.0,0.0175226]
[1728012527692,9.47329289,2369.1,2369.0,0.0175226]
[1728012527891,7.66134559,2369.1,2369.0,0.8319226]
[1728012528123,7.22101,2369.1,2369.0,0.8319226]
[1728012528292,4.22101,2369.1,2369.0,0.8319226]
[1728012529812,4.22101,2369.1,2369.0,0.0175226]
[1728012529813,7.77101,2369.1,2369.0,0.0175226]
[1728012530122,10.460318,2369.1,2369.0,0.0175226]
[1728012530328,12.7818158,2369.1,2369.0,0.0175226]
[1728012532625,12.7818158,2369.1,2368.4,0.8282]
[1728012532626,4.22208,2368.5,2368.4,0.8282]
[1728012532829,4.22284,2368.1,2368.0,0.8282]
[1728012537126,4.22261,2368.2,2368.0,0.8282]
[1728012537506,8.44533,2368.2,2368.0,0.8282]
[1728012537723,4.22261,2368.2,2368.0,0.8282]
[1728012539712,8.44535,2368.2,2368.0,0.8282]
[1728012540525,4.22279,2368.1,2368.0,0.8282]
[1728012540703,4.22261,2368.2,2368.0,0.8282]
[1728012544548,4.22279,2368.1,2368.0,0.8282]
[1728012547035,4.22261,2368.2,2368.0,0.8282]
[1728012547510,7.22261,2368.2,2368.0,0.8282]
[1728012549161,4.22279,2368.1,2368.0,0.8282]
[1728012554373,4.22303,2368.0,2367.6,0.8049]
[1728012554536,7.22261,2368.2,2367.6,1.95144202]
[1728012554735,7.22261,2368.2,2367.7,0.8049]
[1728012555150,11.44533,2368.2,2367.7,0.8049]
[1728012555351,3.0,2368.2,2367.7,0.8049]
[1728012555554,15.74915,2368.4,2367.9,0.8049]
[1728012555555,3.0,2368.3,2367.9,0.8049]
[1728012555732,7.22244,2368.3,2367.9,1.307721]
[1728012556063,4.22263,2368.2,2367.9,0.8049]
[1728012557262,4.2228,2368.1,2367.9,0.8049]
[1728012558350,4.22263,2368.2,2367.9,0.8049]
[1728012558876,8.44541,2368.2,2367.9,0.8049]
[1728012559244,4.22282,2368.1,2367.9,0.8049]
[1728012559685,4.22263,2368.2,2367.9,0.8049]
[1728012559869,4.22279,2368.1,2367.9,0.8049]
[1728012560462,4.22263,2368.2,2367.9,0.8049]
[1728012560797,8.44541,2368.2,2367.9,0.8049]
[1728012561156,8.44536,2368.2,2367.9,0.8049]
[1728012561469,4.22263,2368.2,2367.9,0.8049]
[1728012562782,4.2228,2368.1,2367.9,0.8049]
[1728012562986,4.22263,2368.2,2367.9,0.8049]
[1728012563214,3.0,2368.5,2367.9,1.82262055]
[1728012563349,4.22175,2368.7,2368.2,0.8049]
[1728012563545,4.2219,2368.6,2368.3,0.8049]
[1728012564895,4.22225,2368.4,2368.3,0.8049]
[1728012574915,4.22262,2368.2,2368.0,0.8285]
[1728012576935,4.22262,2368.2,2367.8,1.71356009]
[1728012576936,4.22274,2368.2,2367.8,1.71356009]
[1728012577082,4.22243,2368.3,2367.8,1.71356009]
[1728012577284,4.22246,2368.3,2367.9,4.22307]
[1728012577485,8.44502,2368.3,2368.0,0.8285]
[1728012577725,4.22263,2368.2,2368.0,0.8285]
[1728012578687,4.22246,2368.3,2368.0,0.8285]
[1728012579004,4.22261,2368.2,2368.0,0.8285]
[1728012580195,4.22244,2368.3,2368.0,1.34211976]
[1728012580397,4.22244,2368.3,2368.1,0.8285]
[1728012580633,7.22225,2368.5,2368.1,0.8285]
[1728012580634,4.22238,2368.4,2368.1,0.8285]
[1728012580795,4.22245,2368.3,2368.1,0.8285]
[1728012584743,4.22234,2368.4,2368.1,0.8285]
[1728012584951,4.22244,2368.3,2368.1,0.8285]
[1728012587452,4.22234,2368.4,2368.1,0.8285]
[1728012587453,8.44464,2368.4,2368.1,0.8285]
[1728012588152,1.144464,2368.4,2367.8,1.71356009]
[1728012588326,4.22273,2368.2,2367.8,6.02127665]
[1728012588525,4.22273,2368.2,2367.9,0.8285]
[1728012589732,4.2228,2368.1,2367.9,0.8285]
[1728012590052,4.22273,2368.2,2367.9,0.8285]
[1728012590252,4.22248,2368.3,2367.9,5.77798102]
[1728012590669,4.22229,2368.4,2368.0,4.22296]
[1728012590868,8.44472,2368.4,2368.1,0.7578]
[1728012593376,4.22229,2368.4,2368.1,0.7578]
[1728012593560,4.22215,2368.5,2368.1,5.9735341]
[1728012594569,4.22215,2368.5,2368.1,1.7508241]
[1728012594570,4.22226,2368.4,2368.1,1.7508241]
[1728012598056,4.22253,2368.3,2368.1,0.7578]
[1728012600454,4.22226,2368.4,2368.1,0.7578]
[1728012600455,4.22232,2368.4,2368.1,0.7578]
[1728012600655,4.22251,2368.3,2368.1,0.7578]
[1728012601150,8.44473,2368.4,2368.1,0.7578]
[1728012601987,4.22232,2368.4,2368.1,0.7578]
[1728012605079,4.22212,2368.5,2368.1,0.7578]
[1728012605281,4.22234,2368.4,2368.1,0.7578]
[1728012606791,4.22213,2368.5,2368.1,0.7578]
[1728012607000,12.31447,2368.9,2368.2,0.7981]
[1728012607157,7.3044,2368.9,2368.6,0.7981]
[1728012607359,4.22141,2368.9,2368.6,0.7981]
[1728012607581,4.22119,2369.0,2368.6,5.0199]
[1728012610399,4.22119,2369.0,2368.7,0.7981]
[1728012611101,4.22144,2368.9,2368.7,0.7981]
[1728012611474,4.22154,2368.8,2368.4,0.7981]
[1728012611657,4.22241,2368.4,2368.2,1.68316009]
[1728012611857,4.22261,2368.2,2368.0,0.7981]
[1728012613456,4.22243,2368.3,2368.0,0.7981]
[1728012613703,7.22232,2368.4,2368.0,5.02106]
[1728012613885,3.0,2368.4,2368.1,4.22277]
[1728012615197,3.0,2368.4,2368.2,0.7981]
[1728012615571,4.22217,2368.5,2368.2,0.7981]
[1728012615572,8.44437,2368.5,2368.2,0.7981]
[1728012617102,4.22217,2368.5,2368.2,0.7981]
[1728012617406,4.22194,2368.6,2368.2,5.02057]
[1728012617791,4.22194,2368.6,2368.2,0.7981]
[1728012618085,4.22186,2368.7,2368.2,0.7981]
[1728012618292,4.22197,2368.6,2368.2,5.02069]
[1728012619569,4.22186,2368.7,2368.2,9.24318]
[1728012619793,4.22186,2368.7,2368.3,4.22239]
[1728012619997,7.3044,2368.9,2368.5,4.98204]
[1728012620204,5.02855,2369.1,2368.6,4.22181]
[1728012620205,4.22121,2369.0,2368.6,4.22181]
[1728012620416,4.22137,2368.9,2368.5,4.98204]
[1728012620582,8.44251,2369.0,2368.5,5.66250605]
[1728012621314,5.02858,2369.1,2368.5,1.44046605]
[1728012621635,4.22138,2368.9,2368.5,0.76]
[1728012622182,4.22138,2368.9,2368.5,4.98205]
[1728012625018,5.02858,2369.1,2368.5,4.98205]
[1728012625331,0.8074,2369.1,2368.6,4.22188]
[1728012625622,8.44227,2369.1,2368.8,0.76]
[1728012625827,4.22122,2369.0,2368.8,0.76]
[1728012626827,3.0,2369.1,2368.8,4.98137]
[1728012626985,3.0,2369.3,2368.8,4.98137]
[1728012626986,4.22076,2369.3,2368.9,4.22133]
[1728012627190,3.0,2369.2,2368.9,4.22133]
[1728012627422,3.0,2369.3,2369.0,4.22117]
[1728012627602,4.22052,2369.4,2369.1,0.76]
[1728012627941,4.22073,2369.3,2369.1,0.76]
[1728012629648,4.22083,2369.2,2369.1,0.76]
[1728012629942,4.22067,2369.3,2369.1,0.76]
[1728012630239,8.44144,2369.3,2369.1,0.76]
[1728012630448,4.22067,2369.3,2369.1,0.76]
[1728012630602,4.2205,2369.4,2369.1,0.76]
[1728012630807,4.22004,2369.7,2369.3,4.22055]
[1728012631149,4.22004,2369.7,2369.4,0.76]
[1728012631150,7.22013,2369.6,2369.4,0.76]
[1728012631444,4.22029,2369.5,2369.4,0.76]
[1728012631615,7.642134,2369.6,2369.4,0.76]
[1728012633104,7.22013,2369.6,2369.4,0.76]
[1728012633745,4.22082,2369.3,2368.8,4.22145]
[1728012633943,4.22078,2369.3,2368.8,4.22145]
[1728012634307,4.22088,2369.2,2368.8,4.22145]
[1728012634938,4.99278,2369.2,2368.7,4.98172]
[1728012635247,4.22074,2369.3,2368.9,5.05089]
[1728012635479,4.22064,2369.4,2368.9,5.05089]
[1728012636466,4.22064,2369.4,2369.0,4.22106]
[1728012636935,4.22082,2369.3,2368.9,5.05089]
[1728012637143,4.22092,2369.2,2368.9,0.8296]
[1728012637327,4.22101,2369.1,2368.9,0.8296]
[1728012638421,4.22101,2369.1,2368.7,0.8296]
[1728012638628,4.22101,2369.1,2368.7,5.0512]
[1728012640330,4.616046,2369.3,2368.7,0.8296]
[1728012640566,4.22134,2369.0,2368.7,0.8296]
[1728012641170,5.1045336,2369.2,2368.7,5.05129]
[1728012641368,4.22125,2369.0,2368.7,0.8296]
[1728012642437,4.22161,2368.8,2368.4,4.22223]
[1728012642648,0.88764336,2369.1,2368.4,4.22219]
[1728012642649,0.7719,2368.9,2368.4,4.22219]
[1728012642857,4.22168,2368.8,2368.4,4.22219]
[1728012643072,8.44338,2368.8,2368.4,4.22219]
[1728012643378,4.22168,2368.8,2368.4,4.22219]
[1728012643524,4.22141,2368.9,2368.5,4.22194]
[1728012643730,4.22141,2368.9,2368.6,0.8296]
[1728012644955,4.22119,2369.0,2368.6,5.978759]
[1728012645344,4.22119,2369.0,2368.6,0.8296]
[1728012645345,4.2214,2368.9,2368.6,0.8296]
[1728012646709,4.22122,2369.0,2368.6,5.05141]
[1728012646975,8.44249,2369.0,2368.6,5.05141]
[1728012648373,8.44249,2369.0,2368.6,0.8296]
[1728012648374,4.2215,2368.9,2368.6,0.8296]
[1728012648680,4.22122,2369.0,2368.6,0.8296]
[1728012648681,4.22123,2369.0,2368.6,0.8296]
[1728012648839,4.22144,2368.9,2368.6,0.8296]
[1728012649245,4.22122,2369.0,2368.6,0.8296]
[1728012649442,8.44257,2369.0,2368.6,5.05147]
[1728012649646,4.22122,2369.0,2368.6,0.8296]
[1728012650258,4.22138,2368.9,2368.6,0.8296]
[1728012652350,3.8009,2369.2,2368.4,0.7994]
[1728012652553,4.22168,2368.8,2368.4,5.02164]
[1728012652854,4.22173,2368.7,2368.4,0.7994]
[1728012655876,0.8009,2369.1,2368.4,0.7994]
[1728012656078,7.22121,2369.0,2368.6,4.22188]
[1728012656279,7.22121,2369.0,2368.2,8.17400101]
[1728012656280,4.2214,2368.9,2368.7,0.7994]
[1728012658008,4.2214,2368.9,2368.5,5.02136]
[1728012658178,7.22121,2369.0,2368.5,5.02136]
[1728012658382,4.22139,2368.9,2368.5,0.7994]
[1728012658540,4.22139,2368.9,2368.5,5.02145]
[1728012660978,4.22139,2368.9,2368.6,4.22189]
[1728012661589,4.2212,2369.0,2368.7,4.22172]
[1728012661816,0.8009,2369.1,2368.7,4.22172]
[1728012662018,5.02198,2369.1,2368.7,4.22172]
[1728012662519,9.24309,2369.1,2368.7,4.22172]
[1728012662701,5.02198,2369.1,2368.7,4.22172]
[1728012662903,4.2213,2369.0,2368.6,4.22187]
[1728012663107,4.2213,2369.0,2368.6,4.90639999]
[1728012663623,5.02192,2369.1,2368.7,4.22171]
[1728012663811,4.2212,2369.0,2368.6,4.90637999]
[1728012664118,4.2212,2369.0,2368.6,9.12812999]
[1728012664279,4.2212,2369.0,2368.6,4.90627999]
[1728012664676,4.2212,2369.0,2368.7,4.22171]
[1728012665124,4.2212,2369.0,2368.6,4.90627999]
[1728012666116,0.8009,2369.1,2368.6,4.90627999]
[1728012666321,4.22107,2369.1,2368.7,5.03156]
[1728012666526,3.0,2369.2,2368.8,4.22154]
[1728012666684,4.22068,2369.3,2369.0,0.81]
[1728012667210,4.22083,2369.2,2369.0,0.81]
[1728012668319,4.22068,2369.3,2369.0,0.81]
[1728012668525,4.22083,2369.2,2369.0,0.81]
[1728012669940,4.22068,2369.3,2369.0,0.81]
[1728012671707,4.22086,2369.2,2369.0,0.81]
[1728012672220,4.22125,2369.0,2368.7,0.81]
[1728012672512,8.44303,2368.9,2368.5,5.03195]
[1728012673417,4.22155,2368.8,2368.5,0.81]
[1728012673612,4.22155,2368.8,2368.4,4.22221]
[1728012673945,4.22155,2368.8,2368.4,9.45827601]
[1728012674101,4.22145,2368.9,2368.5,4.22206]
[1728012676041,4.22119,2369.0,2368.6,4.22189]
[1728012678924,4.22138,2368.9,2368.5,4.22196]
[1728012679581,4.22122,2369.0,2368.6,4.2219]
[1728012679759,8.44249,2369.0,2368.6,4.2219]
[1728012679962,8.44254,2369.0,2368.6,4.2219]
[1728012680191,4.22122,2369.0,2368.6,4.2219]
[1728012680962,5.04172,2369.1,2368.7,4.22168]
[1728012681589,3.8207,2369.3,2368.6,0.81]
[1728012681802,3.8207,2369.3,2368.8,4.22152]
[1728012681803,8.04143,2369.3,2368.8,4.22152]
[1728012682307,4.2209,2369.2,2368.8,4.22152]
[1728012684772,4.22108,2369.1,2368.7,4.22168]
[1728012685010,4.22108,2369.1,2368.6,0.81]
[1728012685011,4.22132,2369.0,2368.6,0.81]
[1728012685219,4.22144,2368.9,2368.6,0.81]
[1728012685975,5.04192,2369.0,2368.6,5.03188]
[1728012686883,4.221,2369.2,2368.8,4.22147]
[1728012686884,5.04161,2369.2,2368.8,4.22147]
[1728012687083,5.04161,2369.2,2368.7,4.22159]
[1728012687291,4.22104,2369.1,2368.7,4.22159]
[1728012688717,4.22104,2369.1,2368.6,5.03187]
[1728012688924,4.22125,2369.0,2368.6,5.03187]
[1728012689278,1.226265,2369.1,2368.6,0.81]
[1728012690179,4.22126,2369.0,2368.6,5.03188]
[1728012690507,8.44254,2369.0,2368.6,5.03188]
[1728012691420,4.22126,2369.0,2368.6,0.81]
[1728012691622,4.22161,2368.8,2368.4,1.69506009]
[1728012691974,4.22161,2368.8,2368.4,5.91727009]
[1728012694414,4.22161,2368.8,2368.4,1.69506009]
[1728012694630,4.22193,2368.6,2368.2,5.91290009]
[1728012694801,4.22193,2368.6,2368.2,6.39349604]
[1728012694979,4.22179,2368.7,2368.3,4.22241]
[1728012695178,0.7759,2368.6,2368.1,0.88506009]
[1728012695490,4.99782,2368.6,2368.2,4.22253]
[1728012697522,4.99782,2368.6,2368.1,4.22271]
[1728012697523,4.22208,2368.5,2368.1,4.22271]
[1728012697681,4.99782,2368.6,2368.2,4.22261]
[1728012698389,4.2216,2368.8,2368.3,4.22237]
[1728012698589,4.22129,2369.0,2368.6,5.02709]
[1728012699102,4.67167796,2369.7,2368.6,0.8053]
[1728012699103,0.45160796,2369.7,2368.6,0.8053]
[1728012699331,4.22056,2369.4,2369.0,5.02648]
[1728012699499,4.22044,2369.5,2369.1,4.22101]
[1728012700186,4.22044,2369.5,2369.0,5.02645]
[1728012700824,4.22048,2369.4,2369.0,5.02645]
[1728012701195,0.7759,2369.6,2369.0,0.8053]
[1728012701521,4.22032,2369.5,2369.0,5.53745088]
[1728012701690,4.22048,2369.4,2369.0,5.53745088]
[1728012703212,4.22032,2369.5,2369.0,5.62186963]
[1728012703449,7.22011,2369.7,2369.2,0.8053]
[1728012703613,4.22014,2369.6,2369.2,0.8053]
[1728012703808,4.22014,2369.6,2369.2,1.78113109]
[1728012703994,4.22031,2369.5,2369.2,1.78113109]
[1728012704524,7.21995,2369.7,2369.2,6.00196109]
[1728012704731,7.21995,2369.7,2369.3,4.22053]
[1728012705043,3.0,2369.7,2369.4,4.22046]
[1728012705215,3.0,2369.7,2369.5,0.8053]
[1728012705537,4.21977,2369.8,2369.5,0.8053]
[1728012705737,3.0,2369.7,2369.5,0.8053]
[1728012705951,3.0,2369.8,2369.5,0.8053]
[1728012706596,7.21978,2369.8,2369.5,0.8053]
[1728012706800,3.0,2369.8,2369.5,0.8053]
[1728012707340,7.21977,2369.8,2369.5,0.8053]
[1728012711127,11.43964,2369.8,2369.5,0.8053]
[1728012711332,7.21977,2369.8,2369.5,0.8053]
[1728012711566,4.21996,2369.7,2369.5,0.8053]
[1728012712079,4.22012,2369.6,2369.3,0.7853]
[1728012712386,4.22038,2369.5,2369.3,0.7853]
[1728012716276,8.44006,2369.7,2369.3,0.7853]
[1728012716635,4.22015,2369.6,2369.3,0.7853]
[1728012720891,4.22031,2369.5,2369.1,5.0062]
[1728012721387,4.22031,2369.5,2369.1,9.22712]
[1728012721786,4.22015,2369.6,2369.2,4.22082]
[1728012722149,4.97031,2369.7,2369.3,4.22058]
[1728012722375,4.97031,2369.7,2369.2,4.22082]
[1728012722546,4.97031,2369.7,2369.2,9.41537509]
[1728012722966,4.97031,2369.7,2369.3,4.22055]
[1728012724292,7.21983,2369.8,2369.4,5.00576]
[1728012724457,4.21995,2369.7,2369.4,0.7853]
[1728012725650,4.21924,2370.1,2369.7,4.2199]
[1728012725852,3.0,2370.0,2369.6,4.21998]
[1728012726103,3.0,2370.0,2369.7,4.2199]
[1728012726389,3.0,2370.0,2369.5,0.7933]
[1728012726599,0.7934,2370.2,2369.7,4.21984]
[1728012726600,8.01249,2370.2,2369.7,4.21984]
[1728012726756,3.0,2370.0,2369.7,4.21984]
[1728012727154,7.21952,2370.0,2369.6,5.01337]
[1728012729497,3.0,2370.0,2369.7,4.21992]
[1728012730788,7.21941,2370.0,2369.7,4.21992]
[1728012731155,7.21941,2370.0,2369.6,0.7933]
[1728012732394,7.21941,2370.0,2369.6,5.0134]
[1728012732898,7.21941,2370.0,2369.6,4.2201]
[1728012733582,0.7934,2369.9,2369.2,5.01404]
[1728012733820,5.01364,2369.6,2369.3,0.42605929]
[1728012733983,4.22031,2369.5,2369.2,0.7933]
[1728012734183,4.22031,2369.5,2369.1,4.22097]
[1728012734916,5.01353,2369.6,2369.2,4.22079]
[1728012735483,0.7934,2369.6,2369.2,4.22082]
[1728012735781,0.7934,2369.6,2369.3,4.22063]
[1728012736092,8.43976,2369.8,2369.4,5.01373]
[1728012736294,4.21986,2369.8,2369.4,5.01373]
[1728012736686,4.22005,2369.7,2369.2,0.7933]
[1728012736949,4.22005,2369.7,2369.2,5.01404]
[1728012736950,4.22024,2369.6,2369.2,5.01404]
[1728012737497,5.01364,2369.6,2369.2,5.01404]
[1728012740112,5.01364,2369.6,2369.2,9.2348]
[1728012740501,0.7934,2369.6,2369.2,5.01404]
[1728012740699,0.7934,2369.6,2369.3,4.22063]
[1728012742099,5.01353,2369.6,2369.2,5.01404]
[1728012742302,5.01353,2369.6,2369.2,4.22074]
[1728012742987,0.7934,2369.6,2369.2,4.22074]
[1728012743934,5.01352,2369.6,2369.2,8.44148]
[1728012746397,0.7934,2369.6,2369.2,8.44148]
[1728012746929,5.01352,2369.6,2369.2,8.44148]
[1728012747307,5.01352,2369.6,2369.2,4.22074]
[1728012747518,5.01352,2369.6,2369.2,8.44149]
[1728012748436,5.01352,2369.6,2369.2,4.22074]
[1728012749495,5.01352,2369.6,2369.2,8.44145]
[1728012749696,5.01352,2369.6,2369.2,4.22071]
[1728012750207,4.22037,2369.5,2369.1,5.10605009]
[1728012750401,5.01399,2369.4,2369.0,5.10615009]
[1728012750627,5.01399,2369.4,2369.0,4.22109]
[1728012751133,0.7934,2369.4,2369.1,4.22101]
[1728012752192,7.22019,2369.6,2369.2,4.22082]
[1728012752337,4.2203,2369.5,2369.2,4.22082]
[1728012756994,9.23345,2369.7,2369.2,4.22082]
[1728012757491,9.23344,2369.7,2369.3,4.22057]
[1728012757890,5.01334,2369.7,2369.3,4.22057]
[1728012758198,4.22015,2369.6,2369.2,4.22078]
[1728012758357,4.22015,2369.6,2369.3,0.50223986]
[1728012759393,5.01334,2369.7,2369.3,4.72285986]
[1728012759593,5.01334,2369.7,2369.3,1.32603986]
[1728012759898,4.22017,2369.6,2369.3,0.8238]
[1728012763308,4.2203,2369.5,2369.2,4.22078]
[1728012763908,4.22017,2369.6,2369.0,5.10610009]
[1728012763909,4.22084,2369.2,2369.0,0.88506009]
[1728012764070,4.22084,2369.2,2368.9,1.70886009]